fUSD/lending_fUSD_20240516
["ID","MTS","AMOUNT","RATE_DAILY","PERIOD"]
[327143992,1715848244943,-500.0,0.00011196,2]
[327143993,1715848244952,-500.0,0.00011196,2]
[327143994,1715848244961,-500.0,0.00011196,2]
[327143995,1715848244971,-500.0,0.00011196,2]
[327143996,1715848244980,-500.0,0.00011196,2]
[327143997,1715848244989,-500.0,0.00011196,2]
[327143998,1715848244999,-500.0,0.00011196,2]
[327143999,1715848245011,-500.0,0.00011196,2]
[327144000,1715848245020,-500.0,0.00011196,2]
[327144001,1715848245030,-550.57945386,0.00011196,2]
[327144002,1715848245039,-500.0,0.00011196,2]
[327144003,1715848245049,-500.0,0.00011196,2]
[327144004,1715848245058,-500.0,0.00011196,2]
[327144005,1715848245107,-500.0,0.00011196,2]
[327144006,1715848245117,-500.0,0.00011196,2]
[327144007,1715848245127,-506.43242909,0.00011196,2]
[327144008,1715848245136,-500.0,0.00011196,2]
[327144009,1715848245145,-500.0,0.00011196,2]
[327144010,1715848245154,-500.0,0.00011196,2]
[327144011,1715848245163,-500.0,0.00011196,2]
[327144012,1715848245172,-500.0,0.00011196,2]
[327144013,1715848245181,-500.0,0.00011196,2]
[327144014,1715848245192,-500.0,0.00011196,2]
[327144015,1715848245201,-500.0,0.00011196,2]
[327144016,1715848245210,-500.0,0.00011196,2]
[327144017,1715848245220,-500.0,0.00011196,2]
[327144018,1715848245229,-500.0,0.00011196,2]
[327144019,1715848245238,-500.0,0.00011196,2]
[327144020,1715848245247,-500.0,0.00011196,2]
[327144021,1715848245258,-618.04264868,0.00011196,2]
[327144022,1715848245267,-355.26,0.00011196,2]
[327144023,1715848245275,-351.97,0.00011196,2]
[327144024,1715848245284,-500.0,0.00011196,2]
[327144025,1715848245293,-500.0,0.00011196,2]
[327144026,1715848245302,-500.0,0.00011196,2]
[327144028,1715848245311,-500.0,0.00011196,2]
[327144029,1715848245320,-500.0,0.00011196,2]
[327144030,1715848245329,-500.0,0.00011196,2]
[327144031,1715848245338,-374.94,0.00011196,2]
[327144032,1715848245347,-500.0,0.00011196,2]
[327144033,1715848245356,-500.0,0.00011196,2]
[327144034,1715848245365,-500.0,0.00011196,2]
[327144035,1715848245374,-500.0,0.00011196,2]
[327144036,1715848245383,-500.0,0.00011196,2]
[327144037,1715848245392,-500.0,0.00011196,2]
[327144038,1715848245401,-1182.6,0.00011196,2]
[327144039,1715848245410,-500.0,0.00011196,2]
[327144040,1715848245419,-1182.6,0.00011196,2]
[327144041,1715848245428,-500.0,0.00011196,2]
[327144042,1715848245437,-1182.6,0.00011196,2]
[327144043,1715848245447,-500.0,0.00011196,2]
[327144044,1715848245456,-1182.6,0.00011196,2]
[327144045,1715848245465,-500.0,0.00011196,2]
[327144046,1715848245474,-1182.6,0.00011196,2]
[327144047,1715848245483,-500.0,0.00011196,2]
[327144048,1715848245492,-500.0,0.00011196,2]
[327144049,1715848245501,-1182.6,0.00011196,2]
[327144050,1715848245512,-500.0,0.00011196,2]
[327144051,1715848245521,-500.0,0.00011196,2]
[327144052,1715848245530,-500.0,0.00011196,2]
[327144053,1715848245539,-500.0,0.00011196,2]
[327144054,1715848245548,-500.0,0.00011196,2]
[327144055,1715848245558,-500.0,0.00011196,2]
[327144056,1715848245567,-500.0,0.00011196,2]
[327144057,1715848245575,-500.0,0.00011196,2]
[327144058,1715848245584,-500.0,0.00011196,2]
[327144059,1715848245593,-500.0,0.00011196,2]
[327144060,1715848245602,-500.0,0.00011196,2]
[327144061,1715848245611,-500.0,0.00011196,2]
[327144062,1715848245620,-500.0,0.00011196,2]
[327144063,1715848245629,-500.0,0.00011196,2]
[327144064,1715848245638,-500.0,0.00011196,2]
[327144065,1715848245647,-500.0,0.00011196,2]
[327144066,1715848245656,-500.0,0.00011196,2]
[327144067,1715848245666,-500.0,0.00011196,2]
[327144068,1715848245675,-500.0,0.00011196,2]
[327144069,1715848245688,-500.0,0.00011196,2]
[327144070,1715848245697,-180.32,0.00011196,2]
[327144071,1715848245706,-500.0,0.00011196,2]
[327144072,1715848245716,-380.62,0.00011196,2]
[327144073,1715848245726,-500.0,0.00011196,2]
[327144074,1715848245736,-500.0,0.00011196,2]
[327144075,1715848245745,-500.0,0.00011196,2]
[327144076,1715848245754,-500.0,0.00011196,2]
[327144077,1715848245765,-500.0,0.00011196,2]
[327144078,1715848245774,-500.0,0.00011196,2]
[327144079,1715848245783,-500.0,0.00011196,2]
[327144080,1715848245793,-500.0,0.00011196,2]
[327144081,1715848245802,-500.0,0.00011196,2]
[327144082,1715848245812,-500.0,0.00011196,2]
[327144083,1715848245820,-500.0,0.00011196,2]
[327144084,1715848245829,-500.0,0.00011196,2]
[327144085,1715848245839,-648.8,0.00011196,2]
[327144086,1715848245848,-500.0,0.00011196,2]
[327144087,1715848245857,-500.0,0.00011196,2]
[327144088,1715848245866,-500.0,0.00011196,2]
[327144089,1715848245875,-500.0,0.00011196,2]
[327144090,1715848245885,-500.0,0.00011196,2]
[327144091,1715848245893,-500.0,0.00011196,2]
[327144092,1715848245903,-509.24138158,0.00011196,2]
[327144093,1715848245912,-500.0,0.00011196,2]
[327144094,1715848245921,-500.0,0.00011196,2]
[327144095,1715848245931,-500.0,0.00011196,2]
[327144096,1715848245940,-546.42,0.00011196,2]
[327144097,1715848245950,-500.0,0.00011196,2]
[327144098,1715848245959,-500.0,0.00011196,2]
[327144099,1715848245968,-500.0,0.00011196,2]
[327144100,1715848245978,-500.0,0.00011196,2]
[327144101,1715848245987,-500.0,0.00011196,2]
[327144102,1715848245996,-500.0,0.00011196,2]
[327144103,1715848246006,-351.56,0.00011196,2]
[327144104,1715848246016,-111923.77587687,0.00011197,2]
[327144105,1715848246237,-984.68357849,0.00011197,2]
[327144106,1715848246248,-2368.09616802,0.00011197,2]
[327144107,1715848246262,-2491.19304026,0.00011197,2]
[327144108,1715848246273,-710.733,0.00011197,2]
[327144109,1715848246289,-10000.0483632,0.00011197,2]
[327144110,1715848246304,-804.39789839,0.00011197,2]
[327144111,1715848246317,-1080.35745664,0.00011197,2]
[327144112,1715848246447,-1928.1375,0.00011197,2]
[327144113,1715848246492,-800.0,0.00010506,2]
[327144114,1715848246502,-500.0,0.00010958,2]
[327144115,1715848246512,-16044.44827563,0.00011197,2]
[327144116,1715848246524,-572.7140493,0.00011197,2]
[327144119,1715848246535,-2650.88,0.00011197,2]
[327144121,1715848246546,-5925.19851255,0.00011197,2]
[327144123,1715848246557,-807.50002,0.00011197,2]
[327144126,1715848246576,-800.0,0.00010506,2]
[327144128,1715848246585,-353.5,0.00011197,2]
[327144130,1715848246596,-1678.76950526,0.00011197,2]
[327144132,1715848246607,-309.3200002,0.00011197,2]
[327144135,1715848246618,-496.27636977,0.00011197,2]
[327144137,1715848246629,-1034.268095,0.00011197,2]
[327144139,1715848246687,-500.0,0.00010958,2]
[327144140,1715848246697,-367.11870689,0.00011195,2]
[327144141,1715848246708,-1023.97730515,0.00011195,2]
[327144142,1715848246718,-11193.59467607,0.00011197,2]
[327144143,1715848246744,-880.21195323,0.00011197,2]
[327144144,1715848246756,-373.5132,0.00011197,2]
[327144145,1715848246769,-22948.81977452,0.00011197,2]
[327144146,1715848246905,-534.20467735,0.00010958,2]
[327144147,1715848246915,-500.0,0.00010958,2]
[327144148,1715848246924,-1426.78355364,0.00011197,2]
[327144149,1715848246936,-826.11745518,0.00011197,2]
[327144150,1715848246947,-7016.38830538,0.00011197,2]
[327144151,1715848246958,-1611.69,0.00011197,2]
[327144152,1715848246969,-26612.50580397,0.00011197,2]
[327144153,1715848246994,-448255.39754056,0.00011197,2]
[327144154,1715848247006,-453.32000598,0.00011197,2]
[327144155,1715848247017,-255.637,0.00011197,2]
[327144160,1715848472624,373.51823841,6.94e-05,2]
[327144162,1715848510952,155.0,6.94e-05,2]
[327144163,1715848513774,1359.88263215,6.94e-05,2]
[327144164,1715848527782,1180.74616678,6.94e-05,2]
[327144165,1715848528400,254.41,8.219e-05,2]
[327144166,1715848528937,234.06772659,6.94e-05,2]
[327144176,1715848666243,5748.51246342,6.94e-05,2]
[327144182,1715849031715,241.68,8.219e-05,2]
[327144204,1715849415570,200.0,8.178e-05,30]
[327144205,1715849415612,200.0,8.178e-05,30]
[327144206,1715849415668,200.0,8.178e-05,30]
[327144207,1715849415717,200.0,8.178e-05,30]
[327144208,1715849415774,234.4643749,8.178e-05,30]
[327144221,1715849432315,-5339.5,9.371e-05,2]
[327144222,1715849432325,-250.0,9.373e-05,2]
[327144223,1715849432334,-163.46,9.387e-05,2]
[327144224,1715849432344,-1477.44,9.432e-05,2]
[327144225,1715849432353,-2769.872,9.475e-05,2]
[327144226,1715849432439,-1724.74005624,9.475e-05,2]
[327144227,1715849432451,-684.71908266,9.475e-05,2]
[327144228,1715849432670,-18720.6688611,9.475e-05,2]
[327144229,1715849432680,-181.05,9.514e-05,2]
[327144230,1715849432690,-1143.7171414,9.536e-05,2]
[327144231,1715849432700,-250.0,9.538e-05,2]
[327144232,1715849432709,-163.46,9.571e-05,2]
[327144234,1715849432719,-1663.89,9.58e-05,2]
[327144236,1715849432729,-200.0,9.628e-05,2]
[327144237,1715849432738,-637.7140075,9.628e-05,2]
[327144241,1715849432760,-1796.9759925,9.628e-05,2]
[327144243,1715849432770,-532.26,9.636e-05,2]
[327144244,1715849432779,-154.18,9.654e-05,2]
[327144246,1715849432789,-150.0,9.676e-05,2]
[327144248,1715849432798,-238.32,9.699e-05,2]
[327144250,1715849432807,-499.99,9.719e-05,2]
[327144252,1715849432817,-199.4,9.719e-05,2]
[327144254,1715849432826,-154.18,9.821e-05,2]
[327144256,1715849432835,-467.74,9.926e-05,2]
[327144258,1715849432844,-154.18,9.989e-05,2]
[327144260,1715849432853,-548.23639354,0.0001,2]
[327144262,1715849432863,-154.18,0.00010157,2]
[327144264,1715849432872,-150.99,0.00010281,2]
[327144266,1715849432881,-193.29,0.00010393,2]
[327144267,1715849432890,-241.68,0.00010457,2]
[327144269,1715849432899,-700.0,0.000105,3]
[327144270,1715849432908,-700.0,0.00010506,2]
[327144271,1715849432917,-1400.0,0.000106,3]
[327144272,1715849432927,-1294.66870837,0.00010635,2]
[327144273,1715849432936,-2100.0,0.000107,3]
[327144274,1715849432945,-1000.0,0.00010757,2]
[327144275,1715849432955,-500.0,0.00010758,2]
[327144276,1715849432964,-58006.237,0.00010758,2]
[327144277,1715849432973,-2800.0,0.000108,3]
[327144278,1715849432982,-532.26,0.0001084,2]
[327144279,1715849432992,-6748.6707,0.00010858,2]
[327144280,1715849433001,-2500.0,0.00010858,2]
[327144281,1715849433010,-1712.2078,0.000109,2]
[327144282,1715849433021,-60045.1073,0.000109,2]
[327144283,1715849433032,-3500.0,0.000109,3]
[327144284,1715849433042,-1564.1179518,0.00010906,2]
[327144285,1715849433051,-575.78021576,0.00010958,2]
[327144286,1715849433066,-507.90848267,0.00010958,2]
[327144287,1715849433077,-439.57201163,0.00010958,2]
[327144288,1715849433086,-318.03,0.00010958,2]
[327144289,1715849433097,-500.0,0.00010958,2]
[327144290,1715849433107,-500.0,0.00010958,2]
[327144291,1715849433118,-500.0,0.00010958,2]
[327144292,1715849433128,-499.67026198,0.00010958,2]
[327144293,1715849433140,-500.0,0.00010958,2]
[327144294,1715849433149,-500.0,0.00010958,2]
[327144295,1715849433159,-500.0,0.00010958,2]
[327144296,1715849433168,-500.0,0.00010958,2]
[327144297,1715849433178,-500.0,0.00010958,2]
[327144298,1715849433188,-500.0,0.00010958,2]
[327144299,1715849433198,-500.0,0.00010958,2]
[327144300,1715849433207,-526.26105331,0.00010958,2]
[327144301,1715849433216,-500.0,0.00010958,2]
[327144302,1715849433226,-500.0,0.00010958,2]
[327144303,1715849433236,-500.0,0.00010958,2]
[327144304,1715849433246,-500.0,0.00010958,2]
[327144305,1715849433255,-500.0,0.00010958,2]
[327144306,1715849433265,-491.57078387,0.00010958,2]
[327144307,1715849433275,-500.0,0.00010958,2]
[327144308,1715849433284,-500.0,0.00010958,2]
[327144309,1715849433293,-500.0,0.00010958,2]
[327144310,1715849433303,-500.0,0.00010958,2]
[327144311,1715849433313,-500.0,0.00010958,2]
[327144312,1715849433322,-500.0,0.00010958,2]
[327144313,1715849433332,-500.0,0.00010958,2]
[327144314,1715849433341,-500.0,0.00010958,2]
[327144315,1715849433351,-500.0,0.00010958,2]
[327144316,1715849433360,-500.0,0.00010958,2]
[327144317,1715849433370,-500.0,0.00010958,2]
[327144318,1715849433379,-500.0,0.00010958,2]
[327144319,1715849433388,-500.0,0.00010958,2]
[327144320,1715849433397,-218.22772728,0.00010958,2]
[327144321,1715849433406,-514.79244771,0.00010958,2]
[327144322,1715849433415,-500.0,0.00010958,2]
[327144323,1715849433425,-500.0,0.00010958,2]
[327144324,1715849433434,-541.26,0.00010958,2]
[327144325,1715849433443,-539.0,0.00010958,2]
[327144326,1715849433453,-500.0,0.00010958,2]
[327144327,1715849433462,-500.0,0.00010958,2]
[327144328,1715849433471,-500.0,0.00010958,2]
[327144329,1715849433481,-223.51113052,0.00010958,2]
[327144330,1715849433490,-516.09705708,0.00010958,2]
[327144331,1715849433500,-500.0,0.00010958,2]
[327144332,1715849433509,-500.0,0.00010958,2]
[327144333,1715849433518,-500.0,0.00010958,2]
[327144334,1715849433527,-500.0,0.00010958,2]
[327144335,1715849433536,-500.0,0.00010958,2]
[327144336,1715849433545,-602.62379929,0.00010958,2]
[327144337,1715849433556,-500.0,0.00010958,2]
[327144338,1715849433566,-500.0,0.00010958,2]
[327144339,1715849433576,-500.0,0.00010958,2]
[327144340,1715849433586,-500.0,0.00010958,2]
[327144341,1715849433596,-500.0,0.00010958,2]
[327144342,1715849433608,-500.0,0.00010958,2]
[327144343,1715849433617,-500.0,0.00010958,2]
[327144344,1715849433626,-500.0,0.00010958,2]
[327144345,1715849433635,-500.0,0.00010958,2]
[327144346,1715849433644,-500.0,0.00010958,2]
[327144347,1715849433653,-500.0,0.00010958,2]
[327144348,1715849433663,-306.02,0.00010958,2]
[327144349,1715849433673,-500.0,0.00010958,2]
[327144350,1715849433683,-500.0,0.00010958,2]
[327144351,1715849433694,-205.67911354,0.00010958,2]
[327144352,1715849433704,-500.0,0.00010958,2]
[327144353,1715849433715,-500.0,0.00010958,2]
[327144354,1715849433724,-500.0,0.00010958,2]
[327144355,1715849433736,-500.0,0.00010958,2]
[327144356,1715849433747,-500.0,0.00010958,2]
[327144357,1715849433756,-500.0,0.00010958,2]
[327144358,1715849433766,-566.01,0.00010958,2]
[327144359,1715849433775,-500.0,0.00010958,2]
[327144360,1715849433784,-555.91,0.00010958,2]
[327144361,1715849433794,-500.0,0.00010958,2]
[327144362,1715849433803,-500.0,0.00010958,2]
[327144363,1715849433812,-311.52,0.00010958,2]
[327144364,1715849433821,-500.0,0.00010958,2]
[327144365,1715849433831,-500.0,0.00010958,2]
[327144366,1715849433840,-500.0,0.00010958,2]
[327144367,1715849433849,-500.0,0.00010958,2]
[327144368,1715849433858,-500.0,0.00010958,2]
[327144369,1715849433868,-235.15,0.00010958,2]
[327144370,1715849433877,-500.0,0.00010958,2]
[327144371,1715849433886,-460.11,0.00010958,2]
[327144372,1715849433895,-500.0,0.00010958,2]
[327144373,1715849433905,-500.0,0.00010958,2]
[327144374,1715849433914,-500.0,0.00010958,2]
[327144375,1715849433923,-500.0,0.00010958,2]
[327144376,1715849433932,-500.0,0.00010958,2]
[327144377,1715849433941,-500.0,0.00010958,2]
[327144378,1715849433950,-500.0,0.00010958,2]
[327144379,1715849433960,-500.0,0.00010958,2]
[327144380,1715849433969,-500.0,0.00010958,2]
[327144381,1715849433978,-500.0,0.00010958,2]
[327144382,1715849433987,-500.0,0.00010958,2]
[327144383,1715849433997,-500.0,0.00010958,2]
[327144384,1715849434007,-500.0,0.00010958,2]
[327144385,1715849434016,-500.0,0.00010958,2]
[327144386,1715849434025,-500.0,0.00010958,2]
[327144387,1715849434035,-500.0,0.00010958,2]
[327144388,1715849434044,-335.66,0.00010958,2]
[327144389,1715849434057,-500.0,0.00010958,2]
[327144390,1715849434067,-500.0,0.00010958,2]
[327144391,1715849434076,-500.0,0.00010958,2]
[327144392,1715849434086,-500.0,0.00010958,2]
[327144393,1715849434097,-500.0,0.00010958,2]
[327144394,1715849434107,-500.0,0.00010958,2]
[327144395,1715849434116,-500.0,0.00010958,2]
[327144396,1715849434126,-500.0,0.00010958,2]
[327144397,1715849434138,-500.0,0.00010958,2]
[327144398,1715849434147,-500.0,0.00010958,2]
[327144399,1715849434156,-500.0,0.00010958,2]
[327144400,1715849434165,-642.01310953,0.00010958,2]
[327144401,1715849434174,-500.0,0.00010958,2]
[327144402,1715849434183,-394.52,0.00010958,2]
[327144403,1715849434191,-500.0,0.00010958,2]
[327144404,1715849434200,-500.0,0.00010958,2]
[327144405,1715849434210,-500.0,0.00010958,2]
[327144406,1715849434219,-568.28,0.00010958,2]
[327144407,1715849434229,-400.32,0.00010958,2]
[327144408,1715849434238,-500.0,0.00010958,2]
[327144409,1715849434248,-500.0,0.00010958,2]
[327144410,1715849434257,-500.0,0.00010958,2]
[327144411,1715849434266,-500.0,0.00010958,2]
[327144412,1715849434275,-500.0,0.00010958,2]
[327144413,1715849434285,-500.0,0.00010958,2]
[327144414,1715849434294,-500.0,0.00010958,2]
[327144415,1715849434303,-500.0,0.00010958,2]
[327144416,1715849434312,-500.0,0.00010958,2]
[327144417,1715849434538,-500.0,0.00010958,2]
[327144418,1715849434549,-503.5395002,0.00010958,2]
[327144419,1715849434560,-500.0,0.00010958,2]
[327144420,1715849434570,-210.81,0.00010958,2]
[327144421,1715849434580,-500.0,0.00010958,2]
[327144422,1715849434589,-585.28,0.00010958,2]
[327144423,1715849434599,-500.0,0.00010958,2]
[327144424,1715849434609,-500.0,0.00010958,2]
[327144425,1715849434619,-500.0,0.00010958,2]
[327144426,1715849434628,-500.0,0.00010958,2]
[327144427,1715849434638,-500.0,0.00010958,2]
[327144428,1715849434647,-500.0,0.00010958,2]
[327144429,1715849434656,-500.0,0.00010958,2]
[327144430,1715849434665,-500.0,0.00010958,2]
[327144431,1715849434675,-500.0,0.00010958,2]
[327144432,1715849434684,-500.0,0.00010958,2]
[327144433,1715849434694,-500.0,0.00010958,2]
[327144434,1715849434706,-500.0,0.00010958,2]
[327144435,1715849434716,-565.49,0.00010958,2]
[327144436,1715849434725,-202.47,0.00010958,2]
[327144437,1715849434735,-501.47412167,0.00010958,2]
[327144438,1715849434745,-500.0,0.00010958,2]
[327144439,1715849434753,-500.0,0.00010958,2]
[327144440,1715849434762,-500.0,0.00010958,2]
[327144441,1715849434771,-500.0,0.00010958,2]
[327144442,1715849434780,-500.0,0.00010958,2]
[327144443,1715849434789,-500.0,0.00010958,2]
[327144444,1715849434798,-500.0,0.00010958,2]
[327144445,1715849434807,-500.0,0.00010958,2]
[327144446,1715849434816,-500.0,0.00010958,2]
[327144447,1715849434824,-500.0,0.00010958,2]
[327144448,1715849434833,-500.0,0.00010958,2]
[327144449,1715849434843,-500.0,0.00010958,2]
[327144450,1715849434852,-500.0,0.00010958,2]
[327144451,1715849434862,-500.0,0.00010958,2]
[327144452,1715849434871,-500.0,0.00010958,2]
[327144453,1715849434880,-173.26,0.00010958,2]
[327144454,1715849434888,-500.0,0.00010958,2]
[327144455,1715849434898,-500.0,0.00010958,2]
[327144456,1715849434907,-500.0,0.00010958,2]
[327144457,1715849434916,-500.0,0.00010958,2]
[327144458,1715849434925,-500.0,0.00010958,2]
[327144459,1715849434934,-500.0,0.00010958,2]
[327144460,1715849434944,-500.0,0.00010958,2]
[327144461,1715849434953,-288.52,0.00010958,2]
[327144462,1715849434962,-500.0,0.00010958,2]
[327144463,1715849434972,-500.0,0.00010958,2]
[327144464,1715849434982,-500.0,0.00010958,2]
[327144465,1715849434991,-500.0,0.00010958,2]
[327144466,1715849435001,-500.0,0.00010958,2]
[327144467,1715849435011,-500.0,0.00010958,2]
[327144468,1715849435020,-500.0,0.00010958,2]
[327144469,1715849435030,-500.0,0.00010958,2]
[327144470,1715849435040,-169.26604618,0.00010958,2]
[327144471,1715849435050,-503.94649546,0.00010958,2]
[327144472,1715849435064,-500.0,0.00010958,2]
[327144473,1715849435074,-500.0,0.00010958,2]
[327144474,1715849435084,-500.0,0.00010958,2]
[327144475,1715849435095,-500.0,0.00010958,2]
[327144476,1715849435105,-500.0,0.00010958,2]
[327144477,1715849435115,-253.16,0.00010958,2]
[327144478,1715849435124,-500.0,0.00010958,2]
[327144479,1715849435137,-500.0,0.00010958,2]
[327144480,1715849435147,-501.41183197,0.00010958,2]
[327144481,1715849435157,-500.0,0.00010958,2]
[327144482,1715849435166,-500.0,0.00010958,2]
[327144483,1715849435176,-452.36524867,0.00010958,2]
[327144484,1715849435185,-504.99019989,0.00010958,2]
[327144485,1715849435195,-500.0,0.00010958,2]
[327144486,1715849435205,-500.0,0.00010958,2]
[327144487,1715849435215,-500.0,0.00010958,2]
[327144488,1715849435224,-500.0,0.00010958,2]
[327144489,1715849435234,-500.0,0.00010958,2]
[327144490,1715849435245,-500.0,0.00010958,2]
[327144491,1715849435255,-500.0,0.00010958,2]
[327144492,1715849435266,-500.0,0.00010958,2]
[327144493,1715849435275,-399.84,0.00010958,2]
[327144494,1715849435285,-500.0,0.00010958,2]
[327144495,1715849435295,-500.0,0.00010958,2]
[327144496,1715849435305,-500.0,0.00010958,2]
[327144497,1715849435314,-507.25883444,0.00010958,2]
[327144498,1715849435324,-500.0,0.00010958,2]
[327144499,1715849435334,-500.0,0.00010958,2]
[327144500,1715849435344,-517.29,0.00010958,2]
[327144501,1715849435354,-500.0,0.00010958,2]
[327144502,1715849435363,-500.0,0.00010958,2]
[327144503,1715849435373,-500.0,0.00010958,2]
[327144504,1715849435383,-500.0,0.00010958,2]
[327144505,1715849435392,-500.0,0.00010958,2]
[327144506,1715849435402,-500.0,0.00010958,2]
[327144507,1715849435411,-500.0,0.00010958,2]
[327144508,1715849435421,-516.66607573,0.00010958,2]
[327144509,1715849435430,-500.0,0.00010958,2]
[327144510,1715849435440,-376.73645552,0.00010958,2]
[327144511,1715849435449,-306.81914435,0.00010958,2]
[327144512,1715849435459,-500.0,0.00010958,2]
[327144513,1715849435468,-500.0,0.00010958,2]
[327144514,1715849435478,-514.95859278,0.00010958,2]
[327144515,1715849435489,-500.0,0.00010958,2]
[327144516,1715849435498,-500.0,0.00010958,2]
[327144517,1715849435507,-500.0,0.00010958,2]
[327144518,1715849435517,-500.0,0.00010958,2]
[327144519,1715849435527,-198.34539632,0.00010958,2]
[327144520,1715849435536,-500.0,0.00010958,2]
[327144521,1715849435546,-500.0,0.00010958,2]
[327144522,1715849435556,-500.0,0.00010958,2]
[327144523,1715849435566,-500.0,0.00010958,2]
[327144524,1715849435576,-500.0,0.00010958,2]
[327144525,1715849435585,-500.0,0.00010958,2]
[327144526,1715849435594,-633.75,0.00010958,2]
[327144527,1715849435603,-500.0,0.00010958,2]
[327144528,1715849435613,-500.0,0.00010958,2]
[327144529,1715849435622,-500.0,0.00010958,2]
[327144530,1715849435632,-500.0,0.00010958,2]
[327144531,1715849435641,-500.0,0.00010958,2]
[327144532,1715849435650,-500.0,0.00010958,2]
[327144533,1715849435659,-500.0,0.00010958,2]
[327144534,1715849435669,-500.0,0.00010958,2]
[327144535,1715849435678,-500.0,0.00010958,2]
[327144536,1715849435687,-500.0,0.00010958,2]
[327144537,1715849435696,-500.0,0.00010958,2]
[327144538,1715849435707,-500.0,0.00010958,2]
[327144539,1715849435716,-500.0,0.00010958,2]
[327144540,1715849435726,-500.0,0.00010958,2]
[327144541,1715849435735,-500.0,0.00010958,2]
[327144542,1715849435745,-500.0,0.00010958,2]
[327144543,1715849435754,-500.0,0.00010958,2]
[327144544,1715849435763,-500.0,0.00010958,2]
[327144545,1715849435772,-500.0,0.00010958,2]
[327144546,1715849435781,-301.38497079,0.00010958,2]
[327144547,1715849435791,-500.0,0.00010958,2]
[327144548,1715849435800,-292.10841685,0.00010958,2]
[327144549,1715849435809,-500.0,0.00010958,2]
[327144550,1715849435819,-618.08,0.00010958,2]
[327144551,1715849435828,-500.0,0.00010958,2]
[327144552,1715849435837,-500.0,0.00010958,2]
[327144553,1715849435846,-500.0,0.00010958,2]
[327144554,1715849435856,-500.0,0.00010958,2]
[327144555,1715849435865,-500.0,0.00010958,2]
[327144556,1715849435874,-500.0,0.00010958,2]
[327144557,1715849435883,-500.0,0.00010958,2]
[327144558,1715849435892,-500.0,0.00010958,2]
[327144559,1715849435902,-500.0,0.00010958,2]
[327144560,1715849435911,-500.0,0.00010958,2]
[327144561,1715849435920,-500.0,0.00010958,2]
[327144562,1715849435929,-500.0,0.00010958,2]
[327144563,1715849435939,-500.0,0.00010958,2]
[327144564,1715849435948,-500.0,0.00010958,2]
[327144565,1715849435957,-500.0,0.00010958,2]
[327144566,1715849435966,-500.0,0.00010958,2]
[327144567,1715849435976,-500.0,0.00010958,2]
[327144568,1715849435985,-500.0,0.00010958,2]
[327144569,1715849435994,-500.0,0.00010958,2]
[327144570,1715849436003,-500.0,0.00010958,2]
[327144571,1715849436013,-500.0,0.00010958,2]
[327144572,1715849436022,-500.0,0.00010958,2]
[327144573,1715849436031,-525.47229992,0.00010958,2]
[327144574,1715849436040,-500.0,0.00010958,2]
[327144575,1715849436051,-500.0,0.00010958,2]